bitfinex/quotes_SOLUSD_20240727
["timestamp","ask_amount","ask_price","bid_price","bid_amount"]
[1722075948234,12.43,185.88,185.77,1.07604061]
[1722075948415,12.43,185.88,185.81,12.43]
[1722075948824,5.3804,185.86,185.77,1.07604061]
[1722075949031,5.3804,185.86,185.81,12.43]
[1722075949217,13.4486,185.9,185.76,72.4635]
[1722075949435,69.72,185.94,185.8,12.43]
[1722075949436,12.43,185.88,185.8,12.43]
[1722075949625,12.43,185.9,185.83,12.43]
[1722075949940,12.43,185.9,185.77,1.07616966]
[1722075949941,12.43,185.91,185.84,12.43]
[1722075950145,17.8089,185.91,185.84,12.43]
[1722075950316,5.3789,185.91,185.85,12.43]
[1722075950515,5.3787,185.92,185.86,12.43]
[1722075950819,5.3787,185.92,185.87,45.0]
[1722075951012,5.55891744,185.95,185.89,12.43]
[1722075951238,5.3785,185.93,185.85,22.7435]
[1722075951415,12.43,185.95,185.88,12.43]
[1722075951751,7.86090562,185.97,185.88,12.43]
[1722075951930,7.86090562,185.97,185.86,45.0]
[1722075951931,12.43,185.94,185.86,45.0]
[1722075952229,5.3786,185.92,185.87,12.43]
[1722075952427,5.3784,185.93,185.87,12.43]
[1722075953529,13.76720562,185.94,185.87,12.43]
[1722075953830,17.8083,185.94,185.87,12.43]
[1722075954009,5.3786,185.92,185.87,12.43]
[1722075954217,12.43,185.93,185.87,12.43]
[1722075954418,5.3786,185.92,185.86,57.43]
[1722075954618,17.8083,185.93,185.86,57.43]
[1722075954819,12.43,185.91,185.81,6.6097]
[1722075955123,5.3794,185.9,185.84,12.43]
[1722075955327,5.3794,185.9,185.86,12.43]
[1722075955524,5.3789,185.91,185.86,12.43]
[1722075955925,5.3784,185.93,185.89,12.43]
[1722075956127,1.33720562,185.95,185.9,12.43]
[1722075956128,5.3781,185.94,185.9,12.43]
[1722075956430,5.3786,185.92,185.88,12.43]
[1722075956622,5.3783,185.93,185.88,12.43]
[1722075956927,5.3787,185.92,185.88,12.43]
[1722075957139,1.33720562,185.93,185.88,12.43]
[1722075957435,12.43,185.95,185.81,6.6097]
[1722075957436,5.378,185.94,185.89,12.43]
[1722075957613,5.3784,185.93,185.9,12.43]
[1722075958832,5.378,185.94,185.9,12.43]
[1722075959149,5.3783,185.93,185.9,12.43]
[1722075960051,5.3783,185.93,185.89,12.43]
[1722075960344,7.86090562,185.97,185.87,12.43]
[1722075960345,13.76720562,185.95,185.87,12.43]
[1722075960550,12.43,185.95,185.87,12.43]
[1722075960720,5.3786,185.93,185.89,12.43]
[1722075961060,5.3786,185.92,185.88,12.43]
[1722075961233,7.86090562,185.97,185.88,12.43]
[1722075961234,5.379,185.91,185.88,12.43]
[1722075961636,5.3787,185.92,185.88,12.43]
[1722075961835,5.379,185.91,185.88,12.43]
[1722075962241,5.379,185.91,185.87,12.43]
[1722075962541,5.3787,185.92,185.87,12.43]
[1722075962741,5.3787,185.92,185.88,12.43]
[1722075964338,5.3783,185.94,185.88,12.43]
[1722075964637,5.3783,185.94,185.81,7.68561354]
[1722075964638,5.3784,185.93,185.89,12.43]
[1722075964951,5.3781,185.94,185.9,12.43]
[1722075965653,5.56760069,185.95,185.9,12.43]
[1722075965824,12.28260631,185.95,185.9,12.43]
[1722075966153,5.56760069,185.95,185.9,12.43]
[1722075966936,5.56760069,185.95,185.88,16.2072]
[1722075967129,5.56760069,185.95,185.91,12.43]
[1722075967645,5.56760069,185.95,185.92,45.0]
[1722075968936,5.56760069,185.95,185.93,12.43]
[1722075969531,5.56760069,185.95,185.92,45.0]
[1722075969739,5.56760069,185.95,185.92,57.43]
[1722075972958,5.56760069,185.95,185.93,12.43]
[1722075973149,5.56760069,185.95,185.92,57.43]
[1722075973453,5.56760069,185.95,185.9,12.43]
[1722075973637,5.56760069,185.95,185.91,57.43]
[1722075973838,5.56760069,185.95,185.92,12.43]
[1722075974041,5.56760069,185.95,185.93,45.0]
[1722075974238,5.56760069,185.95,185.93,57.43]
[1722075974438,5.56760069,185.95,185.94,12.43]
[1722075974661,5.56760069,185.95,185.94,57.43]
[1722075974843,5.56760069,185.95,185.94,45.0]
[1722075975045,5.56760069,185.95,185.93,45.0]
[1722075975238,5.56760069,185.95,185.92,57.43]
[1722075975556,5.56760069,185.95,185.92,45.0]
[1722075975757,5.56760069,185.95,185.88,17.2827465]
[1722075975758,5.3781,185.94,185.88,16.2072]
[1722075975932,5.3784,185.93,185.89,12.43]
[1722075976133,5.3784,185.93,185.88,28.6372]
[1722075976451,5.3783,185.93,185.88,28.6372]
[1722075976830,5.3786,185.92,185.84,6.1855]
[1722075977052,12.43,185.94,185.86,12.43]
[1722075977235,13.76720562,185.93,185.86,12.43]
[1722075977427,5.3789,185.91,185.86,12.43]
[1722075977632,5.3787,185.92,185.86,12.43]
[1722075977837,10.94751771,185.93,185.88,12.43]
[1722075978040,5.3784,185.93,185.88,12.43]
[1722075978348,5.3784,185.93,185.89,45.0]
[1722075978846,5.3789,185.91,185.84,6.1855]
[1722075979033,5.3789,185.91,185.87,12.43]
[1722075979237,5.3787,185.92,185.88,45.0]
[1722075979437,5.3787,185.92,185.88,57.43]
[1722075985851,5.379,185.91,185.88,45.0]
[1722075986455,5.3786,185.92,185.88,45.0]
[1722075987346,5.3786,185.92,185.88,57.43]
[1722075988055,5.3784,185.93,185.88,57.43]
[1722075988558,5.3784,185.93,185.89,12.43]
[1722075989637,5.3784,185.93,185.9,1.07569223]
[1722075989834,5.3784,185.93,185.9,46.07569223]
[1722075990556,5.3784,185.93,185.9,45.0]
[1722075990757,5.3784,185.93,185.89,45.0]
[1722075991841,5.3787,185.92,185.89,45.0]
[1722075993052,5.56935766,185.94,185.89,45.0]
[1722075993438,5.3785,185.93,185.89,45.0]
[1722075994252,5.3786,185.92,185.89,45.0]
[1722075997358,5.56935766,185.94,185.89,45.0]
[1722075998060,10.94765766,185.94,185.89,45.0]
[1722075998962,5.56935766,185.94,185.89,57.43]
[1722075999149,15.7698,185.97,185.91,12.43]
[1722075999150,5.3774,185.97,185.91,12.43]
[1722075999345,5.3774,185.97,185.92,57.43]
[1722075999543,5.3775,185.96,185.92,57.43]
[1722075999953,5.3772,185.97,185.92,57.43]
[1722076002547,5.3772,185.97,185.93,12.43]
[1722076002867,5.3769,185.98,185.93,12.43]
[1722076004650,21.88518904,186.01,185.95,12.43]
[1722076004849,3.49680901,186.0,185.96,57.43]
[1722076005056,5.3758,186.02,185.97,12.43]
[1722076007160,5.3758,186.02,185.92,46.07530801]
[1722076007161,5.3758,186.02,185.92,45.0]
[1722076007373,5.3758,186.02,185.96,12.43]
[1722076007576,5.3758,186.02,185.97,45.0]
[1722076008054,5.3755,186.03,185.97,57.43]
[1722076008253,20.0,186.02,185.97,57.43]
[1722076009476,20.0,186.02,185.98,12.43]
[1722076010280,15.9265,186.05,185.99,12.43]
[1722076010454,19.6097262,186.08,186.01,12.43]
[1722076010654,5.3746,186.06,186.01,12.43]
[1722076010968,5.62670599,186.07,186.02,12.43]
[1722076011171,28.3565,186.09,186.02,12.43]
[1722076011470,26.92671815,186.09,186.03,12.43]
[1722076011673,11.00021815,186.09,186.03,12.43]
[1722076011876,5.3735,186.1,186.04,57.43]
[1722076012074,17.8032,186.11,186.04,57.43]
[1722076012251,5.3732,186.11,186.05,12.43]
[1722076012575,5.3732,186.11,186.04,45.0]
[1722076012576,5.3732,186.11,186.06,12.43]
[1722076013373,10.99830743,186.12,186.08,12.43]
[1722076013684,12.43,186.14,186.08,12.43]
[1722076013685,5.3725,186.14,186.08,12.43]
[1722076013859,5.3725,186.14,186.03,27.4704]
[1722076013860,10.99696248,186.14,186.09,57.43]
[1722076014077,12.43,186.13,186.06,12.43]
[1722076014265,18.05455954,186.13,186.07,45.0]
[1722076014769,5.3731,186.11,186.06,12.43]
[1722076014975,5.3734,186.1,186.04,12.43]
[1722076015152,5.3737,186.09,186.03,15.0404]
[1722076015357,5.3737,186.09,186.04,12.43]
[1722076015560,5.3737,186.09,186.04,13.50490691]
[1722076015765,5.3737,186.09,186.03,15.0404]
[1722076015961,5.3737,186.09,186.04,12.43]
[1722076016280,5.3737,186.09,186.05,12.43]
[1722076017382,5.374,186.08,186.05,12.43]
[1722076017568,5.374,186.08,186.03,12.43]
[1722076017968,17.8037,186.1,186.03,12.43]
[1722076018279,5.3738,186.09,186.03,12.43]
[1722076019075,5.62455954,186.13,186.06,12.43]
[1722076019076,23.42735954,186.13,186.06,12.43]
[1722076019263,20.0,186.12,186.07,12.43]
[1722076020466,20.0,186.12,185.99,1.07490192]
[1722076020658,5.3739,186.09,185.99,20.0]
[1722076020862,5.3739,186.09,186.03,12.43]
[1722076021469,17.8039,186.09,186.02,12.43]
[1722076021665,5.3741,186.08,185.99,20.0]
[1722076021967,5.3741,186.08,186.02,12.43]
[1722076022168,5.3741,186.08,186.03,45.0]
[1722076022665,12.43,186.07,185.98,21.5134]
[1722076022869,5.3748,186.06,186.0,12.43]
[1722076023082,17.8049,186.05,185.94,22.8972]
[1722076023283,12.43,186.04,185.97,12.43]
[1722076023586,17.8052,186.04,185.97,12.43]
[1722076023766,12.43,186.04,185.97,12.43]
[1722076024378,17.8049,186.05,185.98,12.43]
[1722076024579,18.0561181,186.06,185.99,12.43]
[1722076024785,12.43,186.07,186.0,12.43]
[1722076024985,20.0,186.06,186.0,12.43]
[1722076025183,25.3746,186.06,186.0,12.43]
[1722076025681,32.43,186.06,185.99,12.43]
[1722076025889,20.0,186.06,186.0,57.43]
[1722076026569,17.8043,186.07,186.0,57.43]
[1722076027588,12.43,186.05,185.98,12.43]
[1722076027772,12.43,186.05,185.99,45.0]
[1722076028172,12.43,186.05,185.98,12.43]
[1722076028367,12.43,186.05,185.97,12.43]
[1722076028566,12.43,186.05,185.98,45.0]
[1722076028768,5.3752,186.04,185.98,45.0]
[1722076029388,17.8052,186.04,185.98,45.0]
[1722076029778,5.3754,186.03,185.98,45.0]
[1722076030288,17.8052,186.04,185.98,45.0]
[1722076030593,17.8055,186.03,185.98,45.0]
[1722076030800,12.43,186.02,185.98,45.0]
[1722076031979,5.3748,186.06,185.99,12.43]
[1722076032286,5.3748,186.06,185.94,28.8861]
[1722076032287,24.15596653,186.08,186.01,12.43]
[1722076032588,30.86717215,186.08,186.01,12.43]
[1722076032886,17.8043,186.07,186.0,57.43]
[1722076033484,12.43,186.06,186.0,45.0]
[1722076035493,18.05644928,186.06,186.0,45.0]
[1722076035896,5.62644928,186.06,186.0,45.0]
[1722076036197,5.62644928,186.06,186.0,57.43]
[1722076036581,5.62644928,186.06,186.0,45.0]
[1722076037300,5.62644928,186.06,186.0,57.43]
[1722076037495,5.62644928,186.06,186.0,45.0]
[1722076037697,5.62644928,186.06,186.01,12.43]
[1722076037889,5.62644928,186.06,186.02,45.0]
[1722076038285,5.62644928,186.06,186.03,12.43]
[1722076038802,5.62644928,186.06,186.04,45.0]
[1722076040904,5.62644928,186.06,186.03,45.0]
[1722076041591,11.00114928,186.06,186.03,45.0]
[1722076041794,11.00114928,186.06,186.02,45.0]
[1722076042008,5.62644928,186.06,186.02,45.0]
[1722076045514,5.62644928,186.06,186.03,12.43]
[1722076045719,5.62644928,186.06,186.04,45.0]
[1722076047487,11.00104928,186.06,186.04,45.0]
[1722076047714,5.3749,186.05,186.03,45.0]
[1722076048088,5.3749,186.05,186.02,45.0]
[1722076051819,11.00104928,186.06,186.02,45.0]
[1722076055634,5.62644928,186.06,185.96,1.07483107]
[1722076055796,5.62644928,186.06,185.98,12.43]
[1722076055797,5.3754,186.03,185.98,12.43]
[1722076055999,5.3758,186.02,185.97,12.43]
[1722076056198,5.3761,186.01,185.94,16.4561]
[1722076056415,5.3761,186.01,185.95,12.43]
[1722076057423,5.3761,186.01,185.96,12.43]
[1722076058721,5.3761,186.01,185.97,45.0]
[1722076059099,5.3769,185.98,185.97,45.0]
[1722076059432,5.3763,186.0,185.97,45.0]
[1722076060117,5.3759,186.02,185.97,45.0]
[1722076060319,5.3759,186.02,185.97,57.43]
[1722076062225,5.3761,186.01,185.97,57.43]
[1722076064404,5.3764,186.0,185.97,45.0]
[1722076065524,5.3764,186.0,185.97,57.43]
[1722076065722,5.3761,186.01,185.97,57.43]
[1722076066118,5.3758,186.02,185.98,12.43]
[1722076066427,5.3758,186.02,185.99,45.0]
[1722076067305,5.62731271,186.05,185.99,45.0]
[1722076067510,5.62731271,186.05,186.04,12.43]
[1722076067720,12.43,186.12,186.04,57.43]
[1722076067917,5.62511268,186.11,186.05,12.43]
[1722076068120,18.05511268,186.11,186.06,45.0]
[1722076068827,18.05511268,186.11,186.05,45.0]
[1722076069130,5.3737,186.1,186.05,45.0]
[1722076069323,18.05511268,186.11,186.05,45.0]
[1722076069522,5.3744,186.07,186.03,12.43]
[1722076069710,5.3744,186.07,186.04,45.0]
[1722076070610,12.43,186.08,186.01,12.43]
[1722076070811,5.375,186.05,186.02,45.0]
[1722076071011,12.43,186.07,186.01,45.0]
[1722076071328,5.3746,186.06,186.01,45.0]
[1722076071506,12.43,186.07,186.0,12.43]
[1722076071507,5.3749,186.05,186.0,12.43]
[1722076072826,5.3749,186.05,186.01,45.0]
[1722076073622,5.3745,186.07,186.01,45.0]
[1722076073926,5.3745,186.07,186.01,57.43]
[1722076074142,5.3747,186.06,186.01,57.43]
[1722076074338,5.3749,186.05,186.01,45.0]
[1722076074714,5.3746,186.06,186.01,45.0]
[1722076075435,5.3746,186.06,186.01,57.43]
[1722076077140,12.43,186.09,186.02,12.43]
[1722076077441,20.0,186.08,186.03,57.43]
[1722076077821,5.3743,186.07,186.03,57.43]
[1722076078230,5.3743,186.07,186.03,45.0]
[1722076078529,5.3746,186.06,186.03,45.0]
[1722076079456,5.3743,186.07,186.03,45.0]
[1722076080747,5.62511268,186.11,186.04,28.0874]
[1722076080927,14.76670562,186.16,186.1,12.43]
[1722076080928,5.3719,186.16,186.1,12.43]
[1722076081136,5.3717,186.17,186.11,12.43]
[1722076081343,5.3717,186.17,186.12,45.0]
[1722076083842,6.4777,186.19,186.13,12.43]
[1722076084039,16.1228,186.2,186.14,45.0]
[1722076084346,5.3705,186.21,186.15,12.43]
[1722076084534,17.81,186.22,186.15,12.43]
[1722076084728,5.3708,186.19,186.14,57.43]
[1722076084936,12.43,186.21,186.14,57.43]
[1722076085143,20.0,186.2,186.15,12.43]
[1722076085440,25.3707,186.2,186.14,57.43]
[1722076085650,25.3706,186.2,186.14,57.43]
[1722076085944,25.3706,186.2,186.15,12.43]
[1722076086145,5.3703,186.21,186.16,45.0]
[1722076086359,5.3705,186.21,186.16,45.0]
[1722076086939,17.8,186.22,186.16,45.0]
[1722076087650,5.37,186.22,186.16,57.43]
[1722076089446,17.8,186.22,186.16,45.0]
[1722076089748,12.43,186.22,186.16,45.0]
[1722076089954,5.3707,186.2,186.16,45.0]
[1722076090139,12.43,186.22,186.16,45.0]
[1722076090337,5.3706,186.2,186.16,45.0]
[1722076090650,12.43,186.21,186.16,45.0]
[1722076090851,5.62184151,186.23,186.16,45.0]
[1722076091055,12.43,186.21,186.16,45.0]
[1722076091259,5.3709,186.19,186.14,12.43]
[1722076091439,5.3708,186.19,186.14,12.43]
[1722076092455,12.43,186.2,186.14,12.43]
[1722076092642,5.3705,186.2,186.14,12.43]
[1722076092843,5.3705,186.2,186.15,45.0]
[1722076093044,17.8005,186.2,186.15,45.0]
[1722076093451,5.3705,186.2,186.15,45.0]
[1722076093653,17.8005,186.2,186.15,45.0]
[1722076094154,17.8005,186.2,186.14,45.0]
[1722076094357,12.43,186.19,186.14,45.0]
[1722076094554,12.43,186.19,186.13,45.0]
[1722076095560,17.8005,186.2,186.13,57.43]
[1722076096159,17.8009,186.19,186.13,45.0]
[1722076096567,17.8011,186.18,186.13,45.0]
[1722076096944,17.8011,186.18,186.12,45.0]
[1722076098467,12.43,186.17,186.12,45.0]
[1722076099043,12.43,186.14,186.06,15.9162]
[1722076099249,12.43,186.13,186.06,28.3462]
[1722076101869,12.43,186.13,186.07,45.0]
[1722076106368,5.3728,186.13,186.07,45.0]
[1722076106564,12.43,186.11,186.07,45.0]
[1722076106765,12.43,186.1,186.03,12.43]
[1722076107165,12.43,186.09,186.02,12.43]
[1722076108468,12.43,186.09,186.03,45.0]
[1722076109372,12.43,186.1,186.03,40.0450027]
[1722076109870,12.43,186.09,186.03,40.0450027]
[1722076110075,12.43,186.07,186.01,16.6644]
[1722076110469,12.43,186.06,186.01,16.6644]
[1722076111573,12.43,186.06,186.02,45.0]
[1722076112265,12.43,186.06,185.99,12.43]
[1722076112575,12.43,186.06,186.0,45.0]
[1722076112780,12.43,186.06,185.99,45.0]
[1722076113083,12.43,186.04,185.98,1.07502529]
[1722076113377,12.43,186.05,185.98,1.07509982]
[1722076113579,27.40077983,186.1,185.97,29.0944]
[1722076113580,12.43,186.06,185.99,13.50504058]
[1722076114366,12.43,186.06,186.0,45.0]
[1722076114567,12.43,186.05,186.0,45.0]
[1722076114767,12.43,186.05,185.99,45.0]
[1722076115373,5.3743,186.07,186.0,1.07504785]
[1722076115573,12.43,186.05,186.0,1.07504785]
[1722076116490,12.43,186.06,186.0,1.07504785]
[1722076116982,5.3743,186.07,186.0,1.07504785]
[1722076117278,12.43,186.07,186.0,12.43]
[1722076117480,12.43,186.07,186.01,45.0]
[1722076117684,12.43,186.06,185.99,57.43]
[1722076118182,17.8046,186.06,185.99,57.43]
[1722076118383,12.43,186.05,185.99,45.0]
[1722076119865,17.8049,186.05,186.0,1.07504864]
[1722076120079,12.43,186.03,185.99,45.0]
[1722076120285,12.43,186.03,185.98,45.0]
[1722076121170,12.43,186.03,185.99,1.07513623]
[1722076126987,17.8057,186.03,185.99,1.07513623]
[1722076128166,17.8057,186.03,185.98,45.0]
[1722076128383,12.43,186.03,185.98,45.0]
[1722076128689,12.43,186.03,185.99,1.07514864]
[1722076129991,12.43,186.02,185.99,1.07514864]
[1722076130380,12.43,186.02,185.98,45.0]
[1722076130381,12.43,186.02,185.92,15.1814]
[1722076130586,12.43,186.02,185.95,12.43]
[1722076130894,12.43,186.02,185.96,46.07521278]
[1722076131888,17.8057,186.02,185.96,45.0]
[1722076132989,12.43,186.02,185.96,45.0]
[1722076138177,17.8058,186.02,185.96,45.0]
[1722076139770,5.62680242,186.06,185.97,1.07525484]
[1722076139977,5.62680242,186.06,185.98,12.6]
[1722076140186,32.43,186.05,185.99,45.0]
[1722076141205,12.43,186.04,185.99,45.0]
[1722076141388,12.43,186.04,185.98,45.0]
[1722076144192,12.43,186.04,185.98,46.07508396]
[1722076144496,12.43,186.04,185.99,1.0750819]
[1722076146702,12.43,186.04,185.98,45.0]
[1722076147079,17.8052,186.04,185.98,45.0]
[1722076147474,17.8052,186.04,185.97,45.0]
[1722076148083,17.8052,186.04,185.98,1.07508397]
[1722076149398,12.43,186.03,185.99,1.07508289]
[1722076149699,12.43,186.02,185.99,1.07508289]
[1722076150395,12.43,186.01,185.97,45.0]
[1722076150787,12.43,186.01,185.98,1.07524592]
[1722076151989,20.0,186.05,185.98,1.07524592]
[1722076152189,12.43,186.01,185.98,1.07524592]
[1722076152498,12.43,186.01,185.97,45.0]
[1722076152692,12.43,186.01,185.98,0.81379214]
[1722076154679,12.43,186.01,185.97,45.0]
[1722076155499,25.62659342,186.05,185.97,45.0]
[1722076155698,12.43,186.03,185.98,1.07509142]
[1722076156602,31.00149342,186.05,185.98,1.07509142]
[1722076156918,31.00149342,186.05,185.99,1.07509042]
[1722076156919,12.43,186.03,185.99,1.07509042]
[1722076158005,12.43,186.03,185.97,1.07509453]
[1722076159222,12.43,186.02,185.97,1.07509453]
[1722076159802,5.3752,186.04,185.97,1.07509453]
[1722076160127,12.43,186.02,185.97,1.07509453]
[1722076160698,12.43,186.03,185.97,1.07509453]
[1722076160897,12.43,186.04,185.97,1.07509453]
[1722076161623,12.43,186.03,185.97,1.07509453]
[1722076161817,17.8055,186.03,185.97,1.07509453]
[1722076164329,17.8055,186.03,185.96,45.0]
[1722076164628,12.43,186.03,185.96,45.0]
[1722076165829,12.43,186.01,185.96,45.0]
[1722076166030,12.43,186.01,185.95,46.0751475]
[1722076167106,12.43,186.02,185.95,58.5051475]
[1722076171424,5.3752,186.04,185.95,58.5051475]
[1722076171751,25.62659342,186.05,185.95,58.5051475]
[1722076171752,12.43,186.03,185.95,58.5051475]
[1722076172525,31.00159342,186.05,185.95,58.5051475]
[1722076172730,31.00159342,186.05,185.97,12.43]
[1722076172932,43.43159342,186.05,185.98,58.50509217]
[1722076173116,38.05659342,186.05,185.99,1.07506772]
[1722076173432,38.05659342,186.05,185.99,46.07506772]
[1722076174214,43.43149342,186.05,185.99,46.07506772]
[1722076174719,5.62659342,186.05,186.0,12.43]
[1722076174924,5.62659342,186.05,186.01,46.07496279]
[1722076175231,5.62659342,186.05,186.02,1.07496349]
[1722076176627,5.62659342,186.05,186.01,45.0]
[1722076182137,5.62659342,186.05,186.02,1.07493074]
[1722076183729,5.62659342,186.05,186.01,45.0]
[1722076184535,18.05659342,186.05,186.0,45.0]
[1722076184923,5.62659342,186.05,186.0,45.0]
[1722076187333,5.62659342,186.05,186.0,46.07495593]
[1722076188130,5.62659342,186.05,186.0,45.0]
[1722076189330,5.62659342,186.05,186.0,46.07495237]
[1722076190535,5.62659342,186.05,186.0,45.0]
[1722076190536,18.05659342,186.05,186.0,45.0]
[1722076190732,18.05659342,186.05,185.99,45.0]
[1722076191843,12.43,186.05,185.99,45.0]
[1722076192729,12.43,186.06,185.99,45.0]
[1722076193429,12.43,186.06,185.99,57.43]
[1722076194919,12.43,186.07,185.99,57.43]
[1722076195127,12.43,186.08,186.0,12.43]
[1722076195329,12.43,186.09,186.01,58.50486994]
[1722076195721,12.43,186.09,186.01,57.43]
[1722076196349,12.43,186.09,186.02,1.07487028]
[1722076196548,12.43,186.09,186.02,13.50487028]
[1722076196757,12.43,186.09,186.03,45.0]
[1722076198330,12.43,186.08,186.03,45.0]
[1722076198531,12.43,186.08,186.02,45.0]
[1722076198750,17.8045,186.07,186.02,45.0]
[1722076198938,17.8045,186.07,186.01,45.0]
[1722076201155,17.8046,186.06,186.0,46.07495999]
[1722076201344,17.8049,186.05,186.0,45.0]
[1722076201767,17.8052,186.04,185.96,12.43]
[1722076201953,17.8052,186.04,185.97,1.07515738]
[1722076202155,5.3755,186.03,185.95,16.3572]
[1722076202357,12.43,186.02,185.95,28.7872]
[1722076203239,12.43,186.03,185.96,13.50522807]
[1722076204357,17.8055,186.03,185.96,12.43]
[1722076204540,12.43,186.02,185.95,13.50525718]
[1722076204945,12.43,186.02,185.96,45.0]
[1722076207367,17.8055,186.03,185.96,57.43]
[1722076208369,17.8052,186.04,185.97,12.43]
[1722076210642,5.3749,186.05,185.97,12.43]
[1722076210842,12.43,186.04,185.98,45.81390573]
[1722076211150,17.8049,186.05,185.99,1.07510183]
[1722076211346,12.43,186.05,185.99,1.07510183]
[1722076211537,12.43,186.05,185.99,13.50510183]
[1722076211736,23.43212407,186.06,186.0,45.0]
[1722076211964,32.43,186.05,186.0,45.0]
[1722076212941,17.8051,186.04,185.97,12.43]
[1722076213141,17.8051,186.04,185.98,45.0]
[1722076213355,17.8051,186.04,185.99,1.0751517]
[1722076213867,17.8051,186.04,185.98,45.0]
[1722076214240,17.8051,186.04,185.99,1.07513821]
[1722076216450,5.3751,186.04,185.99,1.07513821]
[1722076216644,37.8049,186.05,185.99,1.07513821]
[1722076217556,25.3749,186.05,185.99,13.50513821]
[1722076217861,25.3749,186.05,186.0,45.0]
[1722076218063,25.3749,186.05,186.01,1.07510004]
[1722076218269,5.3752,186.04,186.0,45.0]
[1722076218566,37.8049,186.05,186.0,45.0]
[1722076218766,37.8049,186.05,185.99,45.0]
[1722076219772,5.3752,186.04,185.99,45.0]
[1722076220147,5.3752,186.04,185.98,45.0]
[1722076220567,17.8052,186.04,185.98,45.0]
[1722076221485,20.0,186.05,185.98,45.0]
[1722076221650,32.43,186.05,185.99,1.07511879]
[1722076222585,37.8049,186.05,185.99,1.07511879]
[1722076223063,37.8049,186.05,185.98,57.43]
[1722076223373,5.3752,186.04,185.98,57.43]
[1722076223682,5.3752,186.04,185.98,45.0]
[1722076223850,5.3752,186.04,185.99,1.07511707]
[1722076224047,5.3752,186.04,185.98,57.43]
[1722076226064,5.3752,186.04,185.99,1.07512346]
[1722076227774,5.3755,186.03,185.98,45.0]
[1722076227984,17.8055,186.03,185.98,45.0]
[1722076228195,17.8055,186.03,185.97,45.0]
[1722076228397,17.8057,186.02,185.96,45.0]
[1722076229175,5.3757,186.02,185.96,45.0]
[1722076229875,17.8055,186.03,185.96,45.0]
[1722076231097,17.8055,186.03,185.96,57.43]
[1722076231298,12.43,186.02,185.96,45.0]
[1722076231493,17.8055,186.03,185.96,57.43]
[1722076235570,12.43,186.03,185.96,57.43]
[1722076237196,12.43,186.03,185.97,1.07522304]
[1722076237988,39.24702688,186.04,185.97,1.07522304]
[1722076239103,39.24702688,186.04,185.96,57.43]
[1722076239611,39.24702688,186.04,185.97,1.0752247]
[1722076242204,39.24702688,186.04,185.96,57.43]
[1722076243010,21.44182688,186.04,185.98,12.43]
[1722076243217,21.44182688,186.04,185.99,45.0]
[1722076243616,26.81702688,186.04,185.99,57.43]